bitfinex/quotes_SOLUSD_20250829
["timestamp","ask_amount","ask_price","bid_price","bid_amount"]
[1756491960299,98.1500684,202.21,202.2,1e-08]
[1756491961696,44.54094785,202.21,202.2,1e-08]
[1756491961874,53.60912055,202.21,202.2,0.67000001]
[1756491962076,53.60912055,202.21,202.2,1e-08]
[1756491962281,58.55447439,202.21,202.2,1e-08]
[1756491963171,58.53447439,202.21,202.2,1e-08]
[1756491964196,53.58912055,202.21,202.2,1e-08]
[1756491965681,26.0,202.24,202.2,0.67000001]
[1756491965897,0.06,202.21,202.2,0.67000001]
[1756491966195,67.24471456,202.21,202.2,1e-08]
[1756491966367,72.8600684,202.21,202.2,1e-08]
[1756491967091,13.59559401,202.2,202.19,1e-08]
[1756491967308,13.59559401,202.2,202.17,0.2]
[1756491967309,39.59559401,202.18,202.17,0.2]
[1756491967473,93.16471456,202.18,202.17,1e-08]
[1756491967672,13.59559401,202.17,202.15,0.2]
[1756491967976,67.16471456,202.16,202.15,0.2]
[1756491968294,72.78129152,202.16,202.15,0.2]
[1756491968498,98.11129152,202.16,202.15,0.2]
[1756491968799,13.59559401,202.15,202.05,0.67]
[1756491968980,25.79471456,202.15,202.02,11.52912055]
[1756491969175,25.79471456,202.15,202.07,0.67]
[1756491969393,25.79471456,202.15,202.14,1e-08]
[1756491969574,13.59559401,202.11,202.04,0.67]
[1756491969914,11.52912055,202.05,202.04,0.67]
[1756491970093,42.04,202.05,202.04,0.67]
[1756491970292,53.56912055,202.05,202.04,0.67]
[1756491970977,53.56912055,202.05,202.04,0.17]
[1756491971291,53.56912055,202.05,201.98,11.52912055]
[1756491971292,58.51839944,202.05,201.98,11.52912055]
[1756491971494,11.52912055,202.04,201.98,11.52912055]
[1756491971671,42.04,202.03,201.98,11.52912055]
[1756491972092,42.04,202.03,201.96,16.58048517]
[1756491972093,11.52912055,202.02,201.96,16.58048517]
[1756491972281,42.04,202.01,201.96,16.58048517]
[1756491972994,42.04,202.01,201.98,11.52912055]
[1756491973179,42.04,202.01,201.99,0.67]
[1756491973386,11.52912055,202.03,202.0,0.67]
[1756491973678,53.56912055,202.02,202.0,0.67]
[1756491973883,53.56912055,202.02,202.01,0.67]
[1756491974595,53.56912055,202.02,201.96,0.77]
[1756491974942,11.52912055,201.99,201.96,0.77]
[1756491975067,42.04,201.98,201.96,0.77]
[1756491975272,42.04,201.98,201.97,0.67]
[1756491976099,53.56912055,201.98,201.96,0.1]
[1756491976275,11.52912055,201.97,201.96,0.1]
[1756491976604,16.48035093,201.97,201.96,0.1]
[1756491976989,30.07594494,201.97,201.96,0.1]
[1756491977304,13.59559401,201.97,201.96,0.1]
[1756491977476,25.12471456,201.97,201.96,0.1]
[1756491977677,13.59559401,201.97,201.96,0.1]
[1756491977876,25.12471456,201.97,201.96,0.1]
[1756491978599,13.59559401,201.97,201.96,0.1]
[1756491978828,30.74594494,201.97,201.96,0.1]
[1756491978990,25.12471456,201.97,201.96,0.1]
[1756491979617,25.79471456,201.97,201.96,0.1]
[1756491980106,67.81471456,201.97,201.96,0.1]
[1756491980309,72.76594494,201.97,201.96,0.1]
[1756491980689,42.02,201.97,201.96,0.1]
[1756491980908,26.0,201.99,201.96,0.1]
[1756491981104,11.52912055,201.97,201.96,0.1]
[1756491983292,11.52912055,201.99,201.96,0.77]
[1756491983608,42.02,201.98,201.96,0.77]
[1756491983809,42.02,201.98,201.96,0.1]
[1756491983810,53.54912055,201.98,201.96,0.1]
[1756491984008,42.02,201.98,201.96,0.1]
[1756491984204,11.52912055,201.97,201.96,0.77]
[1756491984404,42.0,201.97,201.96,0.77]
[1756491985227,58.48035093,201.97,201.96,0.1]
[1756491986219,11.52912055,201.98,201.96,0.77]
[1756491986408,11.52912055,201.98,201.96,0.1]
[1756491986409,53.52912055,201.97,201.96,0.1]
[1756491986591,54.19912055,201.97,201.96,0.1]
[1756491986793,110.27506549,201.97,201.93,0.03]
[1756491987027,25.12471456,201.94,201.93,0.03]
[1756491987211,67.12471456,201.94,201.93,0.03]
[1756491987416,67.79471456,201.94,201.93,0.03]
[1756491987616,25.79471456,201.94,201.93,0.03]
[1756491987816,67.79471456,201.94,201.93,0.03]
[1756491988408,72.74668049,201.94,201.93,0.03]
[1756491988696,98.74668049,201.94,201.93,0.03]
[1756491989024,39.59559401,201.92,201.91,0.03]
[1756491989200,93.12471456,201.92,201.91,0.03]
[1756491989521,93.79471456,201.92,201.91,0.03]
[1756491989948,82.26559401,201.92,201.91,0.03]
[1756491990102,93.79471456,201.92,201.91,0.03]
[1756491990305,67.79471456,201.92,201.91,0.03]
[1756491990513,72.74717097,201.92,201.91,0.03]
[1756491990826,72.72717097,201.92,201.91,0.03]
[1756491991401,61.19805042,201.92,201.91,0.03]
[1756491991894,72.72717097,201.92,201.91,0.03]
[1756491993702,61.19805042,201.92,201.91,0.03]
[1756491993904,72.72717097,201.92,201.91,0.03]
[1756491996326,44.54805042,201.92,201.91,0.03]
[1756491996541,98.03717097,201.92,201.91,0.03]
[1756491996711,56.07717097,201.92,201.91,0.03]
[1756491996909,79.48912055,201.92,201.91,0.03]
[1756491997205,37.52912055,201.92,201.91,0.69]
[1756491997508,7.79901163,201.94,201.91,0.69]
[1756491997833,41.96,201.93,201.91,7.91718658]
[1756491998031,41.96,201.92,201.91,0.03]
[1756491998512,41.96,201.92,201.91,0.69]
[1756491998833,41.96,201.92,201.91,7.91718658]
[1756491999423,41.96,201.92,201.91,17.20015124]
[1756492000128,41.96,201.92,201.91,0.69]
[1756492000317,53.51744955,201.92,201.91,0.03]
[1756492000514,58.46990596,201.92,201.91,0.03]
[1756492001127,16.50990596,201.92,201.91,0.03]
[1756492001334,53.49744955,201.92,201.91,0.03]
[1756492001535,11.55744955,201.92,201.91,0.03]
[1756492001945,53.49744955,201.92,201.91,0.03]
[1756492002621,0.06,201.93,201.91,0.69]
[1756492003028,41.94,201.92,201.91,0.69]
[1756492003533,0.06,201.93,201.91,0.69]
[1756492004047,0.06,201.93,201.92,11.55744955]
[1756492004427,0.06,201.93,201.92,12.21744955]
[1756492004750,0.06,201.93,201.92,17.16990596]
[1756492005250,0.06,201.93,201.92,5.61245641]
[1756492005456,0.06,201.93,201.92,0.66]
[1756492007483,11.61744955,201.93,201.91,0.03]
[1756492007628,53.47744955,201.92,201.91,0.03]
[1756492007823,54.19744955,201.92,201.91,0.03]
[1756492008629,67.79304356,201.92,201.91,0.03]
[1756492008849,61.18805042,201.92,201.91,0.03]
[1756492009049,19.26805042,201.92,201.91,0.03]
[1756492009255,72.72549997,201.92,201.91,0.03]
[1756492011055,72.72549997,201.92,201.91,1e-08]
[1756492012763,39.59559401,201.89,201.88,0.03]
[1756492013066,93.03304356,201.89,201.88,0.03]
[1756492013269,93.75304356,201.89,201.88,0.03]
[1756492013480,11.55744955,201.82,201.78,0.66]
[1756492013678,53.43744955,201.81,201.78,0.66]
[1756492013857,41.88,201.81,201.79,0.66]
[1756492014062,53.43744955,201.81,201.8,0.66]
[1756492014472,53.43744955,201.81,201.78,0.66]
[1756492014662,53.43744955,201.81,201.79,0.66]
[1756492014858,11.55744955,201.8,201.75,0.66]
[1756492015177,41.88,201.79,201.75,12.21744955]
[1756492015388,41.88,201.78,201.76,12.21744955]
[1756492015552,41.88,201.77,201.69,17.35336407]
[1756492015751,41.88,201.77,201.73,11.55744955]
[1756492016067,4.00262912,201.84,201.75,11.55744955]
[1756492016247,11.55744955,201.81,201.76,0.66]
[1756492016448,41.88,201.8,201.76,0.66]
[1756492016655,26.0,201.85,201.78,11.55744955]
[1756492016858,53.43744955,201.84,201.79,0.66]
[1756492017075,41.88,201.84,201.79,12.21744955]
[1756492017375,11.55744955,201.83,201.8,0.66]
[1756492017668,41.88,201.84,201.76,4.95636951]
[1756492017669,41.88,201.84,201.81,0.66]
[1756492017877,11.55744955,201.83,201.81,0.66]
[1756492018081,4.95349218,201.88,201.82,0.66]
[1756492018266,11.55744955,201.86,201.82,0.66]
[1756492018453,11.55744955,201.86,201.83,0.66]
[1756492018986,41.86,201.85,201.81,16.51255899]
[1756492019286,41.86,201.85,201.83,0.66]
[1756492019504,41.86,201.84,201.82,11.55744955]
[1756492020155,41.86,201.84,201.83,0.66]
[1756492020796,41.86,201.85,201.83,17.17211436]
[1756492020951,41.86,201.85,201.84,12.25744955]
[1756492021156,5.65246365,201.92,201.84,12.25744955]
[1756492021354,53.41744955,201.91,201.85,12.25744955]
[1756492021565,11.55744955,201.9,201.85,0.7]
[1756492021771,11.55744955,201.9,201.83,4.95466481]
[1756492021772,5.01223871,201.93,201.86,12.25744955]
[1756492022077,11.55744955,201.91,201.86,12.25744955]
[1756492022451,16.51017332,201.91,201.86,12.25744955]
[1756492022650,41.84,201.9,201.87,0.7]
[1756492022856,53.39744955,201.9,201.84,0.7]
[1756492023164,11.55744955,201.86,201.8,80.3]
[1756492023362,11.55744955,201.9,201.85,11.55744955]
[1756492023561,0.76,201.93,201.89,11.55744955]
[1756492023562,0.06,201.93,201.89,11.55744955]
[1756492023788,41.84,201.92,201.9,0.7]
[1756492023954,41.84,201.92,201.8,43.34385399]
[1756492023955,53.39744955,201.92,201.87,11.55744955]
[1756492024286,41.84,201.92,201.88,0.7]
[1756492024586,16.51015124,201.91,201.86,11.55744955]
[1756492024872,16.51015124,201.91,201.84,5.6544133]
[1756492025074,11.55744955,201.87,201.81,0.7]
[1756492025279,41.84,201.86,201.81,0.7]
[1756492025458,11.55744955,201.88,201.83,11.55744955]
[1756492025770,41.84,201.87,201.85,11.55744955]
[1756492025962,41.84,201.86,201.84,12.25744955]
[1756492026375,11.55744955,201.92,201.85,12.25744955]
[1756492026557,0.06,201.93,201.91,11.55744955]
[1756492026758,41.82,201.92,201.91,12.25744955]
[1756492027274,41.82,201.92,201.91,0.7]
[1756492028177,0.06,201.93,201.91,17.21015124]
[1756492028372,41.88,201.93,201.91,17.21015124]
[1756492028761,0.06,201.93,201.92,11.55744955]
[1756492028974,0.06,201.96,201.92,38.25744955]
[1756492029152,0.06,201.96,201.95,23.1148991]
[1756492029490,0.06,201.98,201.97,26.0]
[1756492029785,0.06,201.98,201.97,37.55744955]
[1756492029956,0.06,201.98,201.97,43.20867993]
[1756492030679,0.06,202.04,201.97,55.58675588]
[1756492030883,0.06,202.04,202.03,11.55744955]
[1756492031081,1e-08,202.04,202.03,26.0]
[1756492031287,1e-08,202.04,202.03,38.25744955]
[1756492031491,1e-08,202.04,201.98,34.09069253]
[1756492031492,1e-08,202.04,201.99,0.7]
[1756492031660,11.55744955,202.03,201.95,0.7]
[1756492031993,11.55744955,202.03,201.86,24.03606039]
[1756492031994,11.55744955,202.0,201.94,11.55744955]
[1756492032163,0.7,202.01,201.92,5.65230458]
[1756492032361,11.55744955,201.99,201.94,11.55744955]
[1756492032588,0.7,201.99,201.95,11.55744955]
[1756492032808,46.75003173,202.02,201.95,11.55744955]
[1756492032809,42.5,202.02,201.95,11.55744955]
[1756492033088,53.33744955,202.01,201.95,11.55744955]
[1756492033269,11.55744955,202.0,201.95,11.55744955]
[1756492033466,12.25744955,202.0,201.95,11.55744955]
[1756492033872,11.55744955,201.98,201.9,0.7]
[1756492034068,11.55744955,201.95,201.89,11.55744955]
[1756492034274,53.33744955,201.95,201.89,11.55744955]
[1756492034479,53.33744955,201.95,201.9,11.55744955]
[1756492034688,41.78,201.95,201.9,0.7]
[1756492034883,54.03744955,201.95,201.87,0.7]
[1756492035379,11.55744955,201.93,201.88,11.55744955]
[1756492035685,11.55744955,201.94,201.89,11.55744955]
[1756492036061,41.78,201.95,201.84,0.7]
[1756492036062,11.55744955,201.91,201.84,0.7]
[1756492036262,53.31744955,201.9,201.84,11.55744955]
[1756492036467,11.55744955,201.88,201.81,0.7]
[1756492036680,11.55744955,201.88,201.83,11.55744955]
[1756492036998,53.31744955,201.9,201.84,11.55744955]
[1756492037379,53.31744955,201.9,201.83,12.25744955]
[1756492037380,11.55744955,201.89,201.83,12.25744955]
[1756492037873,11.55744955,201.89,201.83,12.28744955]
[1756492038070,11.55744955,201.89,201.83,17.24193091]
[1756492038389,11.55744955,201.85,201.83,0.03]
[1756492038591,0.7,201.88,201.83,0.03]
[1756492038891,11.55744955,201.87,201.83,0.03]
[1756492039095,12.25744955,201.87,201.83,0.03]
[1756492039300,4.95322958,201.89,201.83,0.03]
[1756492039301,11.55744955,201.85,201.83,0.03]
[1756492039470,41.76,201.85,201.83,0.03]
[1756492039673,0.7,201.84,201.83,0.03]
[1756492040284,12.25744955,201.84,201.83,0.03]
[1756492040600,5.6534226,201.89,201.83,0.03]
[1756492040901,12.25744955,201.84,201.83,0.03]
[1756492041578,11.55744955,201.84,201.83,0.03]
[1756492041783,11.55744955,201.86,201.83,0.03]
[1756492041973,41.74,201.86,201.83,0.03]
[1756492042294,41.76,201.86,201.83,11.58744955]
[1756492042511,11.55744955,201.84,201.83,0.03]
[1756492042886,12.25744955,201.84,201.83,0.03]
[1756492043701,41.74,201.84,201.83,0.03]
[1756492044774,53.99744955,201.84,201.83,0.03]
[1756492045094,42.44,201.84,201.83,0.03]
[1756492045286,53.99744955,201.84,201.83,0.03]
[1756492045796,41.74,201.84,201.83,0.03]
[1756492046588,11.55744955,201.85,201.83,0.03]
[1756492046786,41.74,201.84,201.83,0.03]
[1756492047299,12.25744955,201.85,201.83,0.03]
[1756492047499,41.74,201.84,201.83,0.03]
[1756492047794,12.25744955,201.85,201.83,0.03]
[1756492048094,41.74,201.85,201.83,0.03]
[1756492048682,53.29744955,201.85,201.83,0.03]
[1756492049276,41.74,201.85,201.83,0.03]
[1756492049473,53.29744955,201.85,201.83,0.03]
[1756492050777,41.74,201.85,201.83,0.03]
[1756492052007,41.74,201.85,201.83,11.58744955]
[1756492052582,41.74,201.85,201.83,0.03]
[1756492054479,0.66,201.89,201.84,12.26744955]
[1756492054707,41.7,201.88,201.85,11.55744955]
[1756492055202,41.7,201.88,201.86,12.26744955]
[1756492055589,41.7,201.88,201.85,4.95403062]
[1756492055803,41.7,201.88,201.86,11.55744955]
[1756492056006,41.7,201.89,201.85,4.95403062]
[1756492056195,41.7,201.89,201.85,17.22148017]
[1756492057285,41.7,201.89,201.85,0.71]
[1756492057537,41.7,201.89,201.85,11.55744955]
[1756492057814,41.7,201.89,201.85,12.26744955]
[1756492058227,11.55744955,201.88,201.83,0.03]
[1756492058398,11.55744955,201.86,201.83,0.03]
[1756492058587,53.23744955,201.85,201.83,0.03]
[1756492058999,0.66,201.84,201.83,0.03]
[1756492060511,53.23744955,201.85,201.83,0.03]
[1756492060686,12.21744955,201.84,201.83,0.03]
[1756492060882,0.66,201.84,201.83,0.03]
[1756492061190,17.17186889,201.84,201.83,0.03]
[1756492061402,53.89744955,201.84,201.83,0.03]
[1756492061594,12.21744955,201.84,201.83,0.03]
[1756492061794,0.66,201.91,201.83,12.29744955]
[1756492061998,41.66,201.9,201.85,11.55744955]
[1756492062207,41.66,201.9,201.85,12.26744955]
[1756492062208,42.32,201.9,201.85,12.26744955]
[1756492062594,12.21744955,201.92,201.87,11.55744955]
[1756492062920,42.32,201.91,201.87,11.55744955]
[1756492063229,53.87744955,201.91,201.84,4.95441934]
[1756492063524,41.66,201.9,201.86,11.55744955]
[1756492064101,41.66,201.9,201.87,11.55744955]
[1756492064991,41.66,201.9,201.86,11.55744955]
[1756492065293,42.32,201.9,201.86,11.55744955]
[1756492065807,0.66,201.89,201.84,5.66440437]
[1756492066116,41.66,201.9,201.86,11.55744955]
[1756492066317,42.32,201.9,201.87,11.55744955]
[1756492066609,41.66,201.9,201.87,11.55744955]
[1756492066785,42.32,201.9,201.86,11.55744955]
[1756492067190,41.66,201.9,201.86,11.55744955]
[1756492067917,41.66,201.9,201.86,16.51133043]
[1756492068497,41.66,201.9,201.87,11.55744955]
[1756492068901,0.72,201.95,201.89,11.55744955]
[1756492069203,53.85744955,201.94,201.89,11.55744955]
[1756492069401,0.66,201.93,201.88,11.55744955]
[1756492069609,12.21744955,201.92,201.87,11.55744955]
[1756492069817,42.3,201.91,201.87,11.55744955]
[1756492070496,41.64,201.91,201.88,11.55744955]
[1756492070917,41.64,201.91,201.88,4.95340213]
[1756492071089,41.64,201.91,201.88,16.51085168]
[1756492071295,41.64,201.91,201.88,7.22609087]
[1756492071715,41.64,201.91,201.88,7.93609087]
[1756492071907,41.64,201.91,201.88,0.71]
[1756492072217,41.64,201.91,201.89,7.22609087]
[1756492072448,0.72,201.95,201.9,7.22609087]
[1756492072720,41.62,201.94,201.91,0.71]
[1756492072914,41.62,201.94,201.92,7.22609087]
[1756492073221,41.62,201.94,201.91,7.22609087]
[1756492073406,41.62,201.94,201.91,12.1787475]
[1756492073720,41.62,201.94,201.91,7.22609087]
[1756492074092,42.28,201.94,201.91,7.22609087]
[1756492074299,42.28,201.94,201.9,7.22609087]
[1756492074626,42.28,201.94,201.86,0.03]
[1756492074627,7.22609087,201.91,201.86,0.03]
[1756492074804,41.6,201.9,201.86,7.25609087]
[1756492075710,41.6,201.9,201.86,0.03]
[1756492075711,49.48609087,201.9,201.86,0.03]
[1756492076022,7.22609087,201.87,201.86,0.03]
[1756492076321,48.82609087,201.87,201.86,0.03]
[1756492076724,41.6,201.87,201.86,0.03]
[1756492076914,49.48609087,201.87,201.86,0.03]
[1756492077108,54.43977393,201.87,201.86,0.03]
[1756492077312,58.7829654,201.87,201.86,0.03]
[1756492077699,84.76276706,201.87,201.83,0.03]
[1756492077904,11.56928234,201.84,201.83,0.03]
[1756492078103,53.14928234,201.84,201.83,0.03]
[1756492078401,53.80928234,201.84,201.83,0.03]
[1756492078604,41.58,201.84,201.83,0.03]
[1756492080208,0.66,201.87,201.83,0.03]
[1756492080428,41.58,201.86,201.83,0.74]
[1756492080725,11.56928234,201.85,201.83,0.03]
[1756492081026,11.56928234,201.84,201.83,0.03]
[1756492081617,41.58,201.84,201.83,0.03]
[1756492082699,53.84928234,201.84,201.83,0.03]
[1756492082927,53.14928234,201.84,201.83,0.03]
[1756492083322,53.12928234,201.84,201.83,0.03]
[1756492083629,41.56,201.84,201.83,0.73]
[1756492083804,41.56,201.84,201.83,0.03]
[1756492085755,36.01107164,201.96,201.83,0.73]
[1756492086028,0.06,201.98,201.88,11.56928234]
[1756492086029,41.56,201.93,201.88,11.56928234]
[1756492086210,41.56,201.93,201.88,12.26928234]
[1756492086410,11.56928234,201.92,201.86,0.7]
[1756492086637,11.56928234,201.92,201.87,11.56928234]
[1756492086832,11.56928234,201.92,201.87,12.26928234]
[1756492087133,12.26928234,201.92,201.87,12.26928234]
[1756492087338,0.7,201.92,201.88,4.95343768]
[1756492087634,12.26928234,201.91,201.84,4.95441934]
[1756492087820,53.10928234,201.9,201.85,11.56928234]
[1756492088340,12.26928234,201.89,201.84,11.56928234]
[1756492088517,12.26928234,201.88,201.83,11.59928234]
[1756492088710,41.54,201.87,201.84,11.56928234]
[1756492089128,0.7,201.86,201.83,0.03]
[1756492089310,17.22321516,201.86,201.83,0.03]
[1756492089510,0.7,201.85,201.83,0.03]
[1756492089810,41.54,201.85,201.84,11.56928234]
[1756492090229,11.56928234,201.89,201.84,11.56928234]
[1756492090230,41.54,201.86,201.84,11.56928234]
[1756492090409,12.26928234,201.9,201.85,11.56928234]
[1756492090617,41.54,201.89,201.85,11.56928234]
[1756492090814,42.24,201.88,201.84,11.56928234]
[1756492091035,41.54,201.88,201.85,11.56928234]
[1756492091334,12.26928234,201.9,201.85,17.22342138]
[1756492091539,41.52,201.89,201.85,16.52342138]
[1756492091833,0.7,201.89,201.85,16.52342138]
[1756492092040,11.56928234,201.9,201.85,4.95413904]
[1756492092210,11.56928234,201.86,201.83,0.03]
[1756492092411,53.08928234,201.85,201.83,0.03]
[1756492092641,42.22,201.85,201.83,0.03]
[1756492092940,12.26928234,201.84,201.83,0.03]
[1756492093437,17.22370168,201.84,201.83,0.03]
[1756492094642,72.33929569,201.84,201.83,0.03]
[1756492095319,58.74370168,201.84,201.83,0.03]
[1756492095744,17.22370168,201.84,201.83,0.03]
[1756492095947,11.56928234,201.86,201.83,0.03]
[1756492096435,42.2,201.85,201.83,0.03]
[1756492096730,11.56928234,201.85,201.83,0.03]
[1756492096936,41.5,201.84,201.83,0.03]
[1756492097131,53.06928234,201.84,201.83,0.03]
[1756492097433,53.76928234,201.84,201.83,0.03]
[1756492097733,41.5,201.84,201.83,0.03]
[1756492097930,12.32928234,201.87,201.83,0.03]
[1756492098120,41.5,201.86,201.83,0.03]
[1756492098630,53.06928234,201.86,201.83,0.03]
[1756492098934,41.5,201.85,201.83,0.03]
[1756492099641,53.06928234,201.85,201.83,0.03]
[1756492099818,41.5,201.85,201.83,0.03]
[1756492100017,11.56928234,201.86,201.83,0.03]
[1756492100331,53.06928234,201.85,201.83,0.03]
[1756492101140,17.22370168,201.84,201.83,0.03]
[1756492101513,11.56928234,201.84,201.83,0.03]
[1756492102222,46.45422026,201.85,201.83,0.03]
[1756492102421,11.56928234,201.84,201.83,0.03]
[1756492103231,41.48,201.84,201.83,0.03]
[1756492103423,53.04928234,201.84,201.83,0.03]
[1756492106343,53.04928234,201.84,201.83,0.73]
[1756492106344,41.46,201.84,201.83,0.73]
[1756492106746,41.46,201.85,201.83,0.73]
[1756492106923,41.46,201.85,201.83,0.03]
[1756492107626,0.06,201.87,201.84,12.26928234]
[1756492107825,41.46,201.86,201.84,12.26928234]
[1756492108014,41.46,201.86,201.84,0.7]
[1756492108421,11.56928234,201.85,201.83,0.03]
[1756492108636,41.46,201.84,201.83,0.03]
[1756492109018,53.02928234,201.84,201.83,0.03]
[1756492109215,58.68370168,201.84,201.83,0.03]
[1756492109418,41.46,201.84,201.83,0.03]
[1756492111924,7.95194063,201.86,201.83,0.03]
[1756492112119,41.44,201.85,201.83,0.03]
[1756492112433,48.67194063,201.85,201.83,0.03]
[1756492112627,0.06,201.86,201.83,0.03]
[1756492112828,0.06,201.86,201.83,7.93194063]
[1756492113042,41.48,201.86,201.84,12.85628055]
[1756492113219,41.48,201.86,201.84,0.67]
[1756492114026,41.48,201.86,201.83,12.21656818]
[1756492114250,41.48,201.86,201.83,12.88656818]
[1756492114550,48.71194063,201.86,201.83,0.03]
[1756492114746,41.48,201.86,201.83,0.7]
[1756492115750,41.48,201.86,201.83,5.65453301]
[1756492115952,0.06,201.86,201.83,5.65453301]
[1756492116136,41.42,201.85,201.83,0.03]
[1756492116525,41.42,201.85,201.83,0.7]
[1756492116944,41.42,201.85,201.83,0.03]
[1756492117446,21.54753464,201.84,201.83,0.03]
[1756492119427,62.94753464,201.84,201.83,0.03]
[1756492119949,0.06,201.86,201.83,0.03]
[1756492120141,41.38,201.85,201.83,0.7]
[1756492120344,41.38,201.85,201.83,7.93194063]
[1756492120543,41.38,201.85,201.83,0.7]
[1756492120935,41.38,201.85,201.83,0.03]
[1756492121261,49.33194063,201.85,201.83,0.03]
[1756492121550,42.1,201.85,201.83,0.03]
[1756492121738,41.38,201.85,201.83,0.03]
[1756492121938,21.54753464,201.84,201.83,0.03]
[1756492122535,62.92753464,201.84,201.83,0.03]
[1756492122773,21.54753464,201.84,201.83,0.03]
[1756492123059,67.88195398,201.84,201.83,0.03]
[1756492123255,26.50195398,201.84,201.83,0.03]
[1756492123462,62.92753464,201.84,201.83,0.03]
[1756492123886,0.06,201.86,201.83,0.7]
[1756492124173,41.38,201.85,201.83,0.03]
[1756492124546,20.82753464,201.84,201.83,0.03]
[1756492124746,13.59559401,201.84,201.83,0.03]
[1756492125677,13.65559401,201.86,201.83,0.7]
[1756492125846,41.36,201.85,201.83,0.7]
[1756492126262,41.36,201.85,201.84,7.90194063]
[1756492126576,0.06,201.86,201.84,5.62422532]
[1756492126882,0.06,201.86,201.85,0.67]
[1756492127768,0.06,201.86,201.84,12.85616595]
[1756492128276,0.06,201.86,201.84,5.62422532]
[1756492128459,0.06,201.86,201.83,4.98466127]
[1756492128778,0.72,201.85,201.83,0.03]
[1756492128980,62.16753464,201.84,201.83,0.03]
[1756492129154,62.88753464,201.84,201.83,0.03]
[1756492129968,41.34,201.84,201.83,5.65466481]
[1756492130258,41.34,201.84,201.83,0.03]
[1756492130460,13.65559401,201.86,201.83,7.26194063]
[1756492130671,13.65559401,201.86,201.84,0.67]
[1756492130672,41.34,201.85,201.84,0.67]
[1756492130975,0.06,201.86,201.84,7.90194063]
[1756492131267,0.06,201.86,201.85,7.23194063]
[1756492131434,0.06,201.86,201.85,7.90194063]
[1756492132145,0.06,201.86,201.83,0.03]
[1756492132537,41.34,201.85,201.83,0.03]
[1756492133043,13.59559401,201.84,201.83,0.03]
[1756492133245,21.54753464,201.84,201.83,0.03]
[1756492134437,67.82195398,201.84,201.83,0.03]
[1756492135667,26.50195398,201.84,201.83,0.03]
[1756492135957,60.59001335,201.84,201.83,0.03]
[1756492136167,67.82195398,201.84,201.83,0.03]
[1756492138166,62.12753464,201.84,201.83,0.03]
[1756492139257,54.89559401,201.84,201.83,0.03]
[1756492139467,0.06,201.86,201.83,0.7]
[1756492139672,0.06,201.86,201.85,7.23194063]
[1756492139854,0.06,201.86,201.85,7.90194063]
[1756492140249,0.06,201.86,201.85,0.67]
[1756492140744,0.06,201.86,201.85,7.90194063]
[1756492140940,0.06,201.86,201.85,12.85611452]
[1756492141135,0.06,201.86,201.85,5.62417389]
[1756492141570,0.06,201.86,201.85,12.85611452]
[1756492144769,0.06,201.86,201.85,92.45611452]
[1756492144976,0.06,201.86,201.85,85.22417389]
[1756492145165,0.06,201.86,201.85,92.45611452]
[1756492145351,13.59559401,201.85,201.83,0.03]
[1756492145668,0.06,201.86,201.84,7.89194063]
[1756492145870,0.06,201.86,201.85,7.89194063]
[1756492146056,0.06,201.86,201.85,7.92194063]
[1756492146756,20.88753464,201.86,201.85,0.03]